fUSD/lending_fUSD_20240223
["ID","MTS","AMOUNT","RATE_DAILY","PERIOD"]
[314935546,1708687872000,-500.0,0.00028256,2]
[314935547,1708687872009,-500.0,0.00028256,2]
[314935548,1708687872018,-522.23,0.00028256,2]
[314935549,1708687872028,-513.99640353,0.00028256,2]
[314935550,1708687872038,-500.0,0.00028256,2]
[314935551,1708687872047,-500.0,0.00028256,2]
[314935552,1708687872056,-500.0,0.00028256,2]
[314935553,1708687872066,-605.43,0.00028256,2]
[314935554,1708687872076,-500.0,0.00028256,2]
[314935555,1708687872085,-500.0,0.00028256,2]
[314935556,1708687872094,-500.0,0.00028256,2]
[314935557,1708687872103,-150.0,0.00028259,2]
[314935558,1708687872113,-226.1,0.00028282,2]
[314935559,1708687872122,-500.0,0.00028295,2]
[314935560,1708687872131,-924.37,0.00028295,2]
[314935561,1708687872141,-500.0,0.00028295,2]
[314935562,1708687872150,-732.46,0.00028295,2]
[314935563,1708687872159,-500.0,0.00028295,2]
[314935564,1708687872174,-5409.94,0.00028296,2]
[314935565,1708687872183,-500.0,0.00028296,2]
[314935566,1708687872191,-585.12,0.00028296,2]
[314935567,1708687872201,-1157.17,0.00028296,2]
[314935568,1708687872211,-500.0,0.00028296,2]
[314935569,1708687872220,-500.0,0.00028296,2]
[314935570,1708687872229,-564.8,0.00028296,2]
[314935571,1708687872238,-500.0,0.00028296,2]
[314935572,1708687872247,-530.11,0.00028296,2]
[314935573,1708687872256,-1235.37,0.00028296,2]
[314935574,1708687872265,-500.0,0.00028296,2]
[314935575,1708687872274,-7584.27,0.00028296,2]
[314935576,1708687872283,-3746.99,0.00028296,2]
[314935577,1708687872293,-637.13,0.00028296,2]
[314935578,1708687872305,-791.88,0.00028296,2]
[314935579,1708687872314,-602.76,0.00028296,2]
[314935580,1708687872323,-909.61,0.00028296,2]
[314935581,1708687872332,-1374.76,0.00028296,2]
[314935582,1708687872341,-539.86,0.00028296,2]
[314935583,1708687872351,-500.0,0.00028296,2]
[314935584,1708687872364,-1242.91,0.00028296,2]
[314935585,1708687872380,-2031.83,0.00028296,2]
[314935586,1708687872389,-500.0,0.00028296,2]
[314935587,1708687872398,-188.92919561,0.00028297,2]
[314935588,1708687872407,-500.0,0.00028297,2]
[314935589,1708687872417,-673.33,0.00028297,2]
[314935590,1708687872426,-500.0,0.00028297,2]
[314935591,1708687872436,-500.0,0.00028297,2]
[314935592,1708687872446,-527.1867954,0.00028297,2]
[314935593,1708687872455,-500.0,0.00028297,2]
[314935594,1708687872465,-684.42,0.00028297,2]
[314935595,1708687872474,-500.0,0.00028297,2]
[314935596,1708687872483,-500.0,0.00028297,2]
[314935597,1708687872493,-500.0,0.00028297,2]
[314935598,1708687872502,-500.0,0.00028297,2]
[314935599,1708687872511,-500.0,0.00028297,2]
[314935600,1708687872520,-500.0,0.00028297,2]
[314935601,1708687872529,-664.8,0.00028297,2]
[314935602,1708687872540,-622.24239401,0.00028297,2]
[314935603,1708687872549,-500.0,0.00028297,2]
[314935604,1708687872559,-500.0,0.00028297,2]
[314935605,1708687872569,-573.23,0.00028297,2]
[314935606,1708687872578,-879.62,0.00028297,2]
[314935607,1708687872587,-1071.97,0.00028297,2]
[314935608,1708687872596,-500.0,0.00028297,2]
[314935609,1708687872606,-287.53333752,0.00028297,2]
[314935610,1708687872615,-500.0,0.00028297,2]
[314935611,1708687872624,-527.55984164,0.00028297,2]
[314935612,1708687872634,-800.57,0.00028297,2]
[314935613,1708687872643,-642.45669475,0.00028297,2]
[314935614,1708687872652,-500.0,0.00028297,2]
[314935615,1708687872662,-500.0,0.00028297,2]
[314935616,1708687872671,-525.30040149,0.00028297,2]
[314935617,1708687872680,-500.0,0.00028297,2]
[314935618,1708687872689,-500.0,0.00028297,2]
[314935619,1708687872698,-500.0,0.00028297,2]
[314935620,1708687872707,-504.83,0.00028297,2]
[314935621,1708687872716,-500.0,0.00028297,2]
[314935622,1708687872725,-500.0,0.00028297,2]
[314935623,1708687872734,-500.0,0.00028297,2]
[314935624,1708687872745,-500.0,0.00028297,2]
[314935625,1708687872754,-668.38,0.00028297,2]
[314935626,1708687872763,-534.03,0.00028297,2]
[314935627,1708687872772,-500.0,0.00028297,2]
[314935628,1708687872781,-500.0,0.00028297,2]
[314935629,1708687872790,-500.0,0.00028297,2]
[314935630,1708687872799,-500.0,0.00028297,2]
[314935631,1708687872808,-500.0,0.00028297,2]
[314935632,1708687872817,-273.79252183,0.00028297,2]
[314935633,1708687872826,-500.0,0.00028297,2]
[314935634,1708687872835,-500.0,0.00028297,2]
[314935635,1708687872844,-500.0,0.00028297,2]
[314935636,1708687872854,-500.0,0.00028297,2]
[314935637,1708687872862,-571.71621373,0.00028297,2]
[314935638,1708687872872,-543.97,0.00028297,2]
[314935639,1708687872881,-500.0,0.00028297,2]
[314935640,1708687872891,-692.42,0.00028297,2]
[314935641,1708687872900,-652.69,0.00028297,2]
[314935642,1708687872910,-500.0,0.00028297,2]
[314935643,1708687872919,-500.0,0.00028297,2]
[314935644,1708687872928,-500.0,0.00028297,2]
[314935645,1708687872938,-521.88820343,0.00028297,2]
[314935646,1708687872947,-500.0,0.00028297,2]
[314935647,1708687872956,-500.0,0.00028297,2]
[314935648,1708687872965,-500.0,0.00028297,2]
[314935649,1708687872974,-500.0,0.00028297,2]
[314935650,1708687872984,-500.0,0.00028297,2]
[314935651,1708687872993,-500.0,0.00028297,2]
[314935652,1708687873002,-500.0,0.00028297,2]
[314935653,1708687873011,-578.37782539,0.00028297,2]
[314935654,1708687873020,-500.0,0.00028297,2]
[314935655,1708687873030,-500.0,0.00028297,2]
[314935656,1708687873040,-500.0,0.00028297,2]
[314935657,1708687873049,-286.06615238,0.00028297,2]
[314935658,1708687873058,-500.0,0.00028297,2]
[314935659,1708687873067,-500.0,0.00028297,2]
[314935660,1708687873077,-525.53,0.00028297,2]
[314935661,1708687873086,-500.0,0.00028297,2]
[314935662,1708687873096,-500.0,0.00028297,2]
[314935663,1708687873104,-500.0,0.00028297,2]
[314935664,1708687873113,-500.0,0.00028297,2]
[314935665,1708687873123,-291.01353156,0.00028297,2]
[314935666,1708687873132,-500.0,0.00028297,2]
[314935667,1708687873141,-500.0,0.00028297,2]
[314935668,1708687873150,-500.0,0.00028297,2]
[314935669,1708687873160,-500.0,0.00028297,2]
[314935670,1708687873169,-500.0,0.00028297,2]
[314935671,1708687873177,-546.55,0.00028297,2]
[314935672,1708687873186,-554.09,0.00028297,2]
[314935673,1708687873195,-500.0,0.00028297,2]
[314935674,1708687873204,-500.0,0.00028297,2]
[314935675,1708687873213,-500.0,0.00028297,2]
[314935676,1708687873223,-500.0,0.00028297,2]
[314935677,1708687873232,-500.0,0.00028297,2]
[314935678,1708687873241,-500.0,0.00028297,2]
[314935679,1708687873249,-581.81,0.00028297,2]
[314935680,1708687873258,-500.05,0.00028297,2]
[314935681,1708687873267,-500.0,0.00028297,2]
[314935682,1708687873276,-500.0,0.00028297,2]
[314935683,1708687873286,-500.0,0.00028297,2]
[314935684,1708687873295,-500.0,0.00028297,2]
[314935685,1708687873304,-663.14,0.00028297,2]
[314935686,1708687873313,-500.0,0.00028297,2]
[314935687,1708687873322,-500.0,0.00028297,2]
[314935688,1708687873331,-500.0,0.00028297,2]
[314935689,1708687873340,-500.0,0.00028297,2]
[314935690,1708687873349,-500.0,0.00028297,2]
[314935691,1708687873360,-500.0,0.00028297,2]
[314935692,1708687873371,-500.0,0.00028297,2]
[314935693,1708687873381,-705.93,0.00028297,2]
[314935694,1708687873390,-500.0,0.00028297,2]
[314935695,1708687873399,-689.25,0.00028297,2]
[314935696,1708687873408,-500.0,0.00028297,2]
[314935697,1708687873418,-500.0,0.00028297,2]
[314935698,1708687873428,-500.0,0.00028297,2]
[314935699,1708687873437,-1000.0,0.00028297,7]
[314935700,1708687873446,-500.0,0.00028297,2]
[314935701,1708687873455,-500.0,0.00028297,2]
[314935702,1708687873465,-500.0,0.00028297,2]
[314935703,1708687873475,-500.0,0.00028297,2]
[314935704,1708687873484,-500.0,0.00028297,2]
[314935705,1708687873493,-526.54806111,0.00028297,2]
[314935706,1708687873502,-500.0,0.00028297,2]
[314935707,1708687873511,-500.0,0.00028297,2]
[314935708,1708687873520,-500.0,0.00028297,2]
[314935709,1708687873529,-500.0,0.00028297,2]
[314935710,1708687873539,-500.0,0.00028297,2]
[314935711,1708687873549,-1021.3499845,0.00028297,7]
[314935712,1708687873558,-500.0,0.00028297,2]
[314935713,1708687873567,-572.85,0.00028297,2]
[314935714,1708687873576,-500.0,0.00028297,2]
[314935715,1708687873585,-500.0,0.00028297,2]
[314935716,1708687873595,-500.0,0.00028297,2]
[314935717,1708687873604,-574.94450709,0.00028297,2]
[314935718,1708687873613,-500.0,0.00028297,2]
[314935719,1708687873623,-630.23,0.00028297,2]
[314935720,1708687873632,-576.84,0.00028297,2]
[314935721,1708687873641,-548.45,0.00028297,2]
[314935722,1708687873651,-500.0,0.00028297,2]
[314935723,1708687873660,-500.0,0.00028297,2]
[314935724,1708687873669,-500.0,0.00028297,2]
[314935725,1708687873678,-515.43,0.00028297,2]
[314935726,1708687873688,-500.0,0.00028297,2]
[314935727,1708687873697,-500.0,0.00028297,2]
[314935728,1708687873707,-1417.3,0.00028297,2]
[314935729,1708687873716,-500.0,0.00028297,2]
[314935730,1708687873725,-500.0,0.00028297,2]
[314935731,1708687873734,-500.0,0.00028297,2]
[314935732,1708687873744,-500.0,0.00028297,2]
[314935733,1708687873753,-500.0,0.00028297,2]
[314935734,1708687873762,-500.0,0.00028297,2]
[314935735,1708687873771,-1090.8,0.00028297,2]
[314935736,1708687873780,-500.0,0.00028297,2]
[314935737,1708687873790,-500.0,0.00028297,2]
[314935738,1708687873799,-1164.2,0.00028297,2]
[314935739,1708687873809,-503.2,0.00028297,2]
[314935740,1708687873818,-500.0,0.00028297,2]
[314935741,1708687873827,-500.0,0.00028297,2]
[314935742,1708687873836,-569.39,0.00028297,2]
[314935743,1708687873846,-500.0,0.00028297,2]
[314935744,1708687873855,-500.0,0.00028297,2]
[314935745,1708687873864,-500.0,0.00028297,2]
[314935746,1708687873873,-500.0,0.00028297,2]
[314935747,1708687873882,-500.0,0.00028297,2]
[314935748,1708687873892,-535.1476207,0.00028297,2]
[314935749,1708687873901,-653.62,0.00028297,2]
[314935750,1708687873910,-640.92,0.00028297,2]
[314935751,1708687873919,-2000.0,0.00028304,2]
[314935752,1708687873928,-200.0,0.00028304,2]
[314935753,1708687873937,-2000.0,0.00028304,2]
[314935754,1708687873947,-200.0,0.00028304,2]
[314935755,1708687873955,-200.0,0.00028304,2]
[314935756,1708687873965,-7657.280544,0.00028309,2]
[314935757,1708687873975,-500.0,0.00028319,2]
[314935758,1708687873984,-301.77666873,0.00028319,2]
[314935759,1708687873993,-749.00547574,0.0002832,2]
[314935760,1708687874002,-156.47,0.00028328,2]
[314935761,1708687874011,-219.58398876,0.00028329,14]
[314935762,1708687874020,-4847.86,0.00028329,2]
[314935763,1708687874029,-11134.42,0.00028329,2]
[314935764,1708687874041,-3902.63,0.00028329,2]
[314935765,1708687874050,-734.38,0.00028329,2]
[314935766,1708687874059,-500.0,0.00028329,2]
[314935767,1708687874068,-1561.14,0.00028329,2]
[314935768,1708687874078,-579.15,0.00028329,2]
[314935769,1708687874087,-651.84,0.00028329,2]
[314935770,1708687874096,-1084.77,0.00028329,2]
[314935771,1708687874104,-1887.89,0.00028329,2]
[314935772,1708687874114,-609.56,0.00028329,2]
[314935773,1708687874122,-12394.29,0.00028329,2]
[314935774,1708687874131,-783.01,0.00028329,2]
[314935775,1708687874141,-3065.32,0.00028329,2]
[314935776,1708687874150,-4064.58,0.00028329,2]
[314935777,1708687874159,-748.74,0.00028329,2]
[314935778,1708687874169,-3606.12,0.00028329,2]
[314935779,1708687874178,-1803.24,0.00028329,2]
[314935780,1708687874188,-500.0,0.00028329,2]
[314935781,1708687874197,-1373.42,0.00028329,2]
[314935782,1708687874206,-500.0,0.00028329,2]
[314935783,1708687874215,-3288.95,0.00028329,2]
[314935784,1708687874224,-500.0,0.00028329,2]
[314935785,1708687874233,-1085.83,0.00028329,2]
[314935786,1708687874243,-574.06,0.00028329,2]
[314935787,1708687874251,-500.0,0.00028329,2]
[314935788,1708687874261,-5748.3,0.00028329,2]
[314935789,1708687874270,-500.0,0.00028329,2]
[314935790,1708687874280,-955.05,0.00028329,2]
[314935791,1708687874291,-585.26,0.00028329,2]
[314935792,1708687874301,-932.29,0.00028329,2]
[314935793,1708687874311,-909.02,0.00028329,2]
[314935794,1708687874320,-1451.42,0.00028329,2]
[314935795,1708687874330,-654.98,0.00028329,2]
[314935796,1708687874339,-808.82,0.00028329,2]
[314935797,1708687874349,-1169.24,0.00028329,2]
[314935798,1708687874360,-884.15,0.00028329,2]
[314935799,1708687874372,-677.0,0.00028329,2]
[314935800,1708687874383,-606.24,0.00028329,2]
[314935801,1708687874392,-835.13,0.00028329,2]
[314935802,1708687874402,-2229.23,0.00028329,2]
[314935803,1708687874411,-970.48,0.00028329,2]
[314935804,1708687874420,-1003.43,0.00028329,2]
[314935805,1708687874430,-963.02,0.00028329,2]
[314935806,1708687874440,-538.59,0.00028329,2]
[314935807,1708687874452,-556.56,0.00028329,2]
[314935808,1708687874461,-1709.58,0.00028329,2]
[314935809,1708687874472,-994.27702936,0.0002833,2]
[314935810,1708687874482,-500.0,0.0002833,2]
[314935811,1708687874491,-500.0,0.0002833,2]
[314935812,1708687874500,-500.0,0.0002833,2]
[314935813,1708687874510,-500.0,0.0002833,2]
[314935814,1708687874519,-500.0,0.0002833,2]
[314935815,1708687874529,-500.0,0.0002833,2]
[314935816,1708687874540,-500.0,0.0002833,2]
[314935817,1708687874549,-500.0,0.0002833,2]
[314935818,1708687874559,-500.0,0.0002833,2]
[314935819,1708687874568,-584.32172268,0.0002833,2]
[314935820,1708687874578,-500.0,0.0002833,2]
[314935821,1708687874587,-500.0,0.0002833,2]
[314935822,1708687874597,-500.0,0.0002833,2]
[314935823,1708687874606,-500.0,0.0002833,2]
[314935824,1708687874615,-500.0,0.0002833,2]
[314935825,1708687874625,-500.0,0.0002833,2]
[314935826,1708687874634,-500.0,0.0002833,2]
[314935827,1708687874643,-859.67,0.0002833,2]
[314935828,1708687874653,-500.0,0.0002833,2]
[314935829,1708687874662,-500.0,0.0002833,2]
[314935830,1708687874672,-500.0,0.0002833,2]
[314935831,1708687874681,-583.94,0.0002833,2]
[314935832,1708687874690,-500.0,0.0002833,2]
[314935833,1708687874699,-594.6,0.0002833,2]
[314935834,1708687874710,-500.0,0.0002833,2]
[314935835,1708687874719,-500.0,0.0002833,2]
[314935836,1708687874731,-500.0,0.0002833,2]
[314935837,1708687874742,-500.0,0.0002833,2]
[314935838,1708687874753,-500.0,0.0002833,2]
[314935839,1708687874763,-591.93,0.0002833,2]
[314935840,1708687874773,-598.21725351,0.0002833,2]
[314935841,1708687874782,-500.0,0.0002833,2]
[314935842,1708687874793,-443.97530651,0.0002833,2]
[314935843,1708687874805,-500.0,0.0002833,2]
[314935844,1708687874816,-577.02,0.0002833,2]
[314935845,1708687874826,-500.0,0.0002833,2]
[314935846,1708687874836,-567.19,0.0002833,2]
[314935847,1708687874846,-500.0,0.0002833,2]
[314935848,1708687874856,-500.0,0.0002833,2]
[314935849,1708687874866,-500.0,0.0002833,2]
[314935850,1708687874877,-644.84,0.0002833,2]
[314935851,1708687874887,-564.62,0.0002833,2]
[314935852,1708687874896,-500.0,0.0002833,2]
[314935853,1708687874906,-500.0,0.0002833,2]
[314935854,1708687874916,-500.0,0.0002833,2]
[314935855,1708687874925,-500.0,0.0002833,2]
[314935856,1708687874934,-508.82,0.0002833,2]
[314935857,1708687874944,-500.0,0.0002833,2]
[314935858,1708687874954,-500.0,0.0002833,2]
[314935859,1708687874963,-150.0,0.0002833,2]
[314935860,1708687874972,-500.0,0.0002833,2]
[314935861,1708687874982,-500.0,0.0002833,2]
[314935862,1708687874991,-500.0,0.0002833,2]
[314935863,1708687875001,-500.0,0.0002833,2]
[314935864,1708687875011,-600.95299627,0.0002833,2]
[314935865,1708687875020,-392.77569417,0.0002833,2]
[314935866,1708687875030,-500.0,0.0002833,2]
[314935867,1708687875042,-500.0,0.0002833,2]
[314935868,1708687875052,-500.0,0.0002833,2]
[314935869,1708687875061,-500.0,0.0002833,2]
[314935870,1708687875070,-790.83,0.0002833,2]
[314935871,1708687875079,-500.0,0.0002833,2]
[314935872,1708687875088,-639.94061864,0.0002833,2]
[314935873,1708687875098,-708.94,0.0002833,2]
[314935874,1708687875108,-500.0,0.0002833,2]
[314935875,1708687875117,-500.0,0.0002833,2]
[314935876,1708687875127,-652.21,0.0002833,2]
[314935877,1708687875138,-500.0,0.0002833,2]
[314935878,1708687875148,-500.0,0.0002833,2]
[314935879,1708687875158,-500.0,0.0002833,2]
[314935880,1708687875167,-500.0,0.0002833,2]
[314935881,1708687875177,-1275.36,0.0002833,2]
[314935882,1708687875187,-500.0,0.0002833,2]
[314935883,1708687875196,-1273.22,0.0002833,2]
[314935884,1708687875205,-500.0,0.0002833,2]
[314935885,1708687875215,-673.53,0.0002833,2]
[314935886,1708687875225,-964.47,0.0002833,2]
[314935887,1708687875234,-1234.63,0.0002833,2]
[314935888,1708687875244,-4595.02,0.0002833,2]
[314935889,1708687875253,-779.63,0.0002833,2]
[314935890,1708687875263,-896.56,0.0002833,2]
[314935891,1708687875273,-500.0,0.0002833,2]
[314935892,1708687875283,-500.0,0.0002833,2]
[314935893,1708687875293,-894.25,0.0002833,2]
[314935894,1708687875302,-500.0,0.0002833,2]
[314935895,1708687875312,-4586.7,0.0002833,2]
[314935896,1708687875321,-500.0,0.0002833,2]
[314935897,1708687875331,-500.0,0.0002833,2]
[314935898,1708687875341,-1038.86,0.0002833,2]
[314935899,1708687875351,-3380.8,0.0002833,2]
[314935900,1708687875361,-500.0,0.0002833,2]
[314935901,1708687875372,-1704.96,0.0002833,2]
[314935902,1708687875382,-500.0,0.0002833,2]
[314935903,1708687875391,-746.86,0.0002833,2]
[314935904,1708687875402,-500.0,0.0002833,2]
[314935905,1708687875412,-3211.66,0.0002833,2]
[314935906,1708687875422,-500.0,0.0002833,2]
[314935907,1708687875432,-500.0,0.0002833,2]
[314935908,1708687875443,-613.68,0.0002833,2]
[314935909,1708687875455,-1432.24,0.0002833,2]
[314935910,1708687875465,-1090.67,0.0002833,2]
[314935911,1708687875474,-500.0,0.0002833,2]
[314935912,1708687875485,-500.0,0.0002833,2]
[314935913,1708687875495,-2172.34,0.0002833,2]
[314935914,1708687875505,-813.15,0.0002833,2]
[314935915,1708687875515,-1166.63,0.0002833,2]
[314935916,1708687875526,-500.0,0.0002833,2]
[314935917,1708687875538,-1361.69,0.0002833,2]
[314935918,1708687875550,-1905.86,0.0002833,2]
[314935919,1708687875561,-650.59,0.0002833,2]
[314935920,1708687875571,-690.41,0.0002833,2]
[314935921,1708687875581,-7440.69,0.0002833,2]
[314935922,1708687875591,-500.0,0.0002833,2]
[314935923,1708687875601,-500.0,0.0002833,2]
[314935924,1708687875610,-535.64,0.0002833,2]
[314935925,1708687875620,-500.0,0.0002833,2]
[314935926,1708687875630,-1976.25,0.0002833,2]
[314935927,1708687875640,-500.0,0.0002833,2]
[314935928,1708687875649,-3282.11,0.0002833,2]
[314935929,1708687875659,-500.0,0.0002833,2]
[314935930,1708687875671,-500.0,0.0002833,2]
[314935931,1708687875681,-1322.37,0.0002833,2]
[314935932,1708687875691,-3684.82,0.0002833,2]
[314935933,1708687875701,-500.0,0.0002833,2]
[314935934,1708687875711,-1022.15,0.0002833,2]
[314935935,1708687875720,-2690.77,0.0002833,2]
[314935936,1708687875730,-967.0,0.0002833,2]
[314935937,1708687875740,-788.57,0.0002833,2]
[314935938,1708687875749,-876.9,0.0002833,2]
[314935939,1708687875759,-611.38,0.0002833,2]
[314935940,1708687875769,-3051.05,0.0002833,2]
[314935941,1708687875779,-565.66,0.0002833,2]
[314935942,1708687875790,-1261.53,0.0002833,2]
[314935943,1708687875800,-3150.01,0.0002833,2]
[314935944,1708687875809,-569.88,0.0002833,2]
[314935945,1708687875819,-755.21,0.0002833,2]
[314935946,1708687875828,-2024.58,0.0002833,2]
[314935947,1708687875838,-500.0,0.0002833,2]
[314935948,1708687875848,-4325.54,0.0002833,2]
[314935949,1708687875858,-1544.63395152,0.0002833,2]
[314935950,1708687875868,-1488.55,0.0002833,2]
[314935951,1708687875877,-500.0,0.0002833,2]
[314935952,1708687875887,-1629.43,0.0002833,2]
[314935953,1708687875896,-650.8,0.0002833,2]
[314935954,1708687875906,-1998.19,0.0002833,2]
[314935955,1708687875916,-500.0,0.0002833,2]
[314935956,1708687875925,-500.0,0.0002833,2]
[314935957,1708687875935,-500.0,0.0002833,2]
[314935958,1708687875946,-13459.56,0.0002833,2]
[314935959,1708687875956,-500.0,0.0002833,2]
[314935960,1708687875966,-569.49,0.0002833,2]
[314935961,1708687875975,-500.0,0.0002833,2]
[314935962,1708687875985,-500.0,0.00028345,2]
[314935963,1708687875996,-526.39331553,0.00028345,2]
[314935964,1708687876005,-824.08,0.00028347,2]
[314935965,1708687876015,-575.80671369,0.00028354,2]
[314935966,1708687876025,-500.0,0.0002837,2]
[314935967,1708687876038,-500.0,0.0002837,2]
[314935968,1708687876047,-500.0,0.0002837,2]
[314935969,1708687876058,-1403.53,0.0002837,2]
[314935970,1708687876068,-500.0,0.0002837,2]
[314935971,1708687876078,-500.0,0.00028391,2]
[314935972,1708687876088,-1375.14,0.00028391,2]
[314935973,1708687876097,-678.64,0.00028391,2]
[314935974,1708687876107,-500.0,0.00028391,2]
[314935975,1708687876117,-500.0,0.00028391,2]
[314935976,1708687876126,-702.66,0.00028391,2]
[314935977,1708687876136,-4890.62,0.00028391,2]
[314935978,1708687876146,-500.0,0.00028391,2]
[314935979,1708687876155,-500.0,0.00028391,2]
[314935980,1708687876165,-2518.4,0.00028391,2]
[314935981,1708687876174,-500.0,0.00028391,2]
[314935982,1708687876183,-500.0,0.00028391,2]
[314935983,1708687876192,-674.78,0.00028391,2]
[314935984,1708687876202,-524.82,0.00028391,2]
[314935985,1708687876211,-636.21,0.00028391,2]
[314935986,1708687876221,-500.0,0.00028391,2]
[314935987,1708687876232,-704.48,0.00028391,2]
[314935988,1708687876242,-587.68,0.00028391,2]
[314935989,1708687876252,-1112.79,0.00028391,2]
[314935990,1708687876263,-1963.61,0.00028391,2]
[314935991,1708687876272,-500.0,0.00028393,2]
[314935992,1708687876282,-500.0,0.00028393,2]
[314935993,1708687876293,-506.89153952,0.00028393,2]
[314935994,1708687876302,-500.0,0.00028393,2]
[314935995,1708687876312,-942.75,0.00028393,2]
[314935996,1708687876321,-500.0,0.00028393,2]
[314935997,1708687876331,-500.0,0.00028393,2]
[314935998,1708687876340,-555.52778279,0.00028393,2]
[314935999,1708687876350,-500.0,0.00028393,2]
[314936000,1708687876361,-293.81665893,0.00028393,2]
[314936001,1708687876373,-500.0,0.00028393,2]
[314936002,1708687876383,-500.0,0.00028393,2]
[314936003,1708687876392,-500.0,0.00028393,2]
[314936004,1708687876403,-500.0,0.00028393,2]
[314936005,1708687876412,-500.0,0.00028393,2]
[314936006,1708687876422,-500.0,0.00028393,2]
[314936007,1708687876432,-179.38,0.00028393,2]
[314936008,1708687876442,-500.0,0.00028393,2]
[314936009,1708687876452,-500.0,0.00028393,2]
[314936010,1708687876463,-500.0,0.00028393,2]
[314936011,1708687876472,-500.0,0.00028393,2]
[314936012,1708687876482,-500.0,0.00028393,2]
[314936013,1708687876492,-500.0,0.00028393,2]
[314936014,1708687876502,-500.0,0.00028393,2]
[314936015,1708687876511,-500.0,0.00028393,2]
[314936016,1708687876521,-500.0,0.00028393,2]
[314936017,1708687876531,-500.0,0.00028393,2]
[314936018,1708687876541,-535.96968744,0.00028393,2]
[314936019,1708687876550,-500.0,0.00028393,2]
[314936020,1708687876560,-500.0,0.00028393,2]
[314936021,1708687876570,-500.0,0.00028393,2]
[314936022,1708687876579,-608.76,0.00028393,2]
[314936023,1708687876589,-308.35519464,0.00028393,2]
[314936024,1708687876598,-500.0,0.00028393,2]
[314936025,1708687876608,-500.0,0.00028393,2]
[314936026,1708687876618,-500.0,0.00028393,2]
[314936027,1708687876628,-500.0,0.00028393,2]
[314936028,1708687876638,-500.0,0.00028393,2]
[314936029,1708687876647,-214.90998695,0.00028393,2]
[314936030,1708687876657,-500.0,0.00028393,2]
[314936031,1708687876667,-500.0,0.00028393,2]
[314936032,1708687876677,-500.0,0.00028393,2]
[314936033,1708687876686,-500.0,0.00028393,2]
[314936034,1708687876696,-500.0,0.00028393,2]
[314936035,1708687876706,-500.0,0.00028393,2]
[314936036,1708687876716,-522.23,0.00028393,2]
[314936037,1708687876726,-500.0,0.00028393,2]
[314936038,1708687876736,-476.98697225,0.00028393,2]
[314936039,1708687876982,-192.89644015,0.00028393,2]
[314936040,1708687876994,-605.43,0.00028393,2]
[314936041,1708687877004,-500.0,0.00028393,2]
[314936042,1708687877013,-500.0,0.00028393,2]
[314936043,1708687877023,-500.0,0.00028393,2]
[314936044,1708687877033,-9019.09744597,0.00028398,2]
[314936045,1708687877043,-184.29,0.00028401,2]